bitfinex/quotes_BTCUSD_20241103
["timestamp","ask_amount","ask_price","bid_price","bid_amount"]
[1730613012299,1.19035682,68518.0,68514.0,0.00165]
[1730613012512,1.17635682,68518.0,68514.0,0.00165]
[1730613012941,1.25511671,68518.0,68514.0,0.00165]
[1730613013597,1.25011671,68518.0,68514.0,0.00165]
[1730613013821,1.26411671,68518.0,68514.0,0.00165]
[1730613014027,1.27811671,68518.0,68514.0,0.00165]
[1730613014230,1.26411671,68518.0,68514.0,0.00165]
[1730613014669,1.27811671,68518.0,68514.0,0.00165]
[1730613015735,1.24270099,68518.0,68514.0,0.00165]
[1730613015957,1.2779612,68518.0,68514.0,0.00165]
[1730613016442,1.29152282,68518.0,68514.0,0.00165]
[1730613016662,1.2779612,68518.0,68514.0,0.00165]
[1730613016886,1.2639612,68518.0,68514.0,0.00165]
[1730613017108,1.2499612,68518.0,68514.0,0.00165]
[1730613017328,1.2639612,68518.0,68514.0,0.00165]
[1730613017576,1.2779612,68518.0,68514.0,0.00165]
[1730613017817,1.2639612,68518.0,68514.0,0.00165]
[1730613018257,1.2779612,68518.0,68514.0,0.00165]
[1730613020034,1.2799612,68518.0,68514.0,0.00165]
[1730613022276,1.24470099,68518.0,68514.0,0.00165]
[1730613023801,1.23070099,68518.0,68514.0,0.00165]
[1730613024233,1.24470099,68518.0,68514.0,0.00165]
[1730613024437,1.1639411,68518.0,68514.0,0.00165]
[1730613024645,1.1359411,68518.0,68514.0,0.00165]
[1730613024859,1.1639411,68518.0,68514.0,0.00165]
[1730613026102,1.1992177,68518.0,68514.0,0.00165]
[1730613028547,1.27797759,68518.0,68514.0,0.00165]
[1730613029840,1.25628327,68518.0,68514.0,0.00165]
[1730613030056,1.27801493,68518.0,68514.0,0.00165]
[1730613031865,1.28001493,68518.0,68514.0,0.00165]
[1730613032081,1.27801493,68518.0,68514.0,0.00165]
[1730613032970,1.28001493,68518.0,68514.0,0.00165]
[1730613035115,1.27801493,68518.0,68514.0,0.00165]
[1730613036337,1.25628327,68518.0,68514.0,0.00165]
[1730613036687,1.27810156,68518.0,68514.0,0.00165]
[1730613039317,1.16201985,68518.0,68514.0,0.00165]
[1730613039968,1.14840854,68518.0,68514.0,0.00165]
[1730613040196,1.16202682,68518.0,68514.0,0.00165]
[1730613041507,1.26202682,68518.0,68514.0,0.00165]
[1730613042175,1.26402682,68518.0,68514.0,0.00165]
[1730613042452,1.40985256,68518.0,68514.0,0.00165]
[1730613042644,0.16100846,68515.0,68514.0,0.00165]
[1730613042861,0.97651304,68515.0,68514.0,0.00165]
[1730613043072,1.01991571,68515.0,68514.0,0.00165]
[1730613043287,1.16574145,68515.0,68514.0,0.00165]
[1730613043505,1.13033391,68515.0,68514.0,0.00165]
[1730613043735,1.16571848,68515.0,68514.0,0.00165]
[1730613043947,1.17971848,68515.0,68514.0,0.00165]
[1730613044163,1.17771848,68515.0,68514.0,0.00165]
[1730613044413,1.17971848,68515.0,68514.0,0.00165]
[1730613044621,0.99049007,68515.0,68514.0,0.00165]
[1730613044813,1.00449007,68515.0,68514.0,0.00165]
[1730613045468,1.06957284,68515.0,68514.0,0.00165]
[1730613045681,1.04157284,68515.0,68514.0,0.00165]
[1730613045860,1.20139858,68515.0,68514.0,0.00165]
[1730613046010,1.21539858,68515.0,68514.0,0.00165]
[1730613047863,1.30017139,68515.0,68514.0,0.00165]
[1730613048270,1.28617139,68515.0,68514.0,0.00165]
[1730613048482,1.30017139,68515.0,68514.0,0.00165]
[1730613048883,1.28617139,68515.0,68514.0,0.00165]
[1730613049303,1.30017139,68515.0,68514.0,0.00165]
[1730613049590,1.40864267,68515.0,68514.0,0.00165]
[1730613050521,1.30017139,68515.0,68514.0,0.00165]
[1730613050838,1.27217139,68515.0,68514.0,0.00165]
[1730613051042,1.23678682,68515.0,68514.0,0.00165]
[1730613051375,1.2861449,68515.0,68514.0,0.00165]
[1730613051598,1.27219376,68515.0,68514.0,0.00165]
[1730613051815,1.28622065,68515.0,68514.0,0.00165]
[1730613052271,1.30022065,68515.0,68514.0,0.00165]
[1730613052698,1.38622065,68515.0,68514.0,0.00165]
[1730613052914,1.40022065,68515.0,68514.0,0.00165]
[1730613058378,1.40020528,68515.0,68514.0,0.00165]
[1730613058823,0.15402746,68506.0,68505.0,0.000819]
[1730613059043,1.36550384,68506.0,68505.0,0.000819]
[1730613059270,1.31349033,68506.0,68505.0,0.000819]
[1730613059489,1.20475843,68506.0,68505.0,0.000819]
[1730613060152,1.21875843,68506.0,68505.0,0.000819]
[1730613060383,1.36262977,68506.0,68505.0,0.000819]
[1730613060972,1.44959739,68506.0,68505.0,0.000819]
[1730613061413,1.46360485,68506.0,68505.0,0.000819]
[1730613062789,1.54236474,68506.0,68505.0,0.000819]
[1730613063907,1.4553853,68506.0,68505.0,0.000819]
[1730613064327,1.45499818,68506.0,68505.0,0.000819]
[1730613065365,1.30545215,68506.0,68505.0,0.000819]
[1730613065572,1.22669226,68506.0,68505.0,0.000819]
[1730613065825,1.37622981,68506.0,68505.0,0.000819]
[1730613066045,1.22669226,68506.0,68505.0,0.000819]
[1730613066274,1.3762377,68506.0,68505.0,0.000819]
[1730613066495,1.22669226,68506.0,68505.0,0.000819]
[1730613067360,1.29186767,68506.0,68505.0,0.000819]
[1730613069717,1.30545215,68506.0,68505.0,0.000819]
[1730613069929,1.22669226,68506.0,68505.0,0.000819]
[1730613070400,1.27786683,68506.0,68505.0,0.000819]
[1730613070613,1.29185944,68506.0,68505.0,0.000819]
[1730613070825,1.27785944,68506.0,68505.0,0.000819]
[1730613071034,1.29185944,68506.0,68505.0,0.000819]
[1730613071713,1.27785944,68506.0,68505.0,0.000819]
[1730613071911,1.21268487,68506.0,68505.0,0.000819]
[1730613072132,1.22668487,68506.0,68505.0,0.000819]
[1730613072345,1.29187203,68506.0,68505.0,0.000819]
[1730613073720,1.29187036,68506.0,68505.0,0.000819]
[1730613073922,1.22668487,68506.0,68505.0,0.000819]
[1730613074131,1.29187032,68506.0,68505.0,0.000819]
[1730613074562,1.22668487,68506.0,68505.0,0.000819]
[1730613074998,1.22669961,68506.0,68505.0,0.000819]
[1730613075212,1.37604063,68506.0,68505.0,0.000819]
[1730613075870,1.22669961,68506.0,68505.0,0.000819]
[1730613077651,1.00406838,68506.0,68505.0,0.000819]
[1730613077947,0.87846838,68506.0,68505.0,0.000819]
[1730613078365,0.86846838,68506.0,68505.0,0.000819]
[1730613078576,0.87347088,68506.0,68505.0,0.000819]
[1730613078790,0.87847088,68506.0,68505.0,0.000819]
[1730613078994,0.87347088,68506.0,68505.0,0.000819]
[1730613079637,0.85171926,68506.0,68505.0,0.000819]
[1730613080294,0.85671926,68506.0,68505.0,0.000819]
[1730613081381,0.70092222,68506.0,68505.0,0.000819]
[1730613081605,0.72267207,68506.0,68505.0,0.000819]
[1730613082512,0.70867116,68506.0,68505.0,0.000819]
[1730613082722,0.67832746,68506.0,68505.0,0.000819]
[1730613082975,0.69966685,68506.0,68505.0,0.000819]
[1730613083425,0.70466685,68506.0,68505.0,0.000819]
[1730613084721,0.66932746,68506.0,68505.0,0.000819]
[1730613086107,0.70466538,68506.0,68505.0,0.000819]
[1730613087335,0.68291897,68506.0,68505.0,0.000819]
[1730613088419,0.69351666,68506.0,68505.0,0.000819]
[1730613089254,0.67432746,68506.0,68505.0,0.000819]
[1730613089469,0.68792082,68506.0,68505.0,0.000819]
[1730613090050,0.70966915,68506.0,68505.0,0.000819]
[1730613090232,0.68792042,68506.0,68505.0,0.000819]
[1730613090454,0.70966915,68506.0,68505.0,0.000819]
[1730613091121,0.67432746,68506.0,68505.0,0.000819]
[1730613091327,0.70966747,68506.0,68505.0,0.000819]
[1730613091751,0.85230711,68506.0,68505.0,0.000819]
[1730613092606,0.92750711,68506.0,68505.0,0.000819]
[1730613092812,0.78486747,68506.0,68505.0,0.000819]
[1730613100487,0.83396747,68506.0,68505.0,0.000819]
[1730613102070,0.97976451,68506.0,68505.0,0.000819]
[1730613102515,1.02327199,68506.0,68505.0,0.000819]
[1730613104531,0.97976451,68506.0,68505.0,0.000819]
[1730613104752,1.02327199,68506.0,68505.0,0.000819]
[1730613105867,0.98476451,68506.0,68505.0,0.000819]
[1730613106310,1.05002573,68506.0,68505.0,0.000819]
[1730613109448,1.12878562,68506.0,68505.0,0.000819]
[1730613109669,1.44619372,68506.0,68505.0,0.000819]
[1730613110345,1.44819372,68506.0,68505.0,0.000819]
[1730613110589,1.54619372,68506.0,68505.0,0.000819]
[1730613111044,1.45917875,68506.0,68505.0,0.000819]
[1730613111500,1.56794746,68506.0,68505.0,0.000819]
[1730613111715,1.45917875,68506.0,68505.0,0.000819]
[1730613111958,1.55789574,68506.0,68505.0,0.000819]
[1730613112174,1.56989574,68506.0,68505.0,0.000819]
[1730613112385,1.47417875,68506.0,68505.0,0.000819]
[1730613112822,1.42683874,68506.0,68505.0,0.000819]
[1730613113065,1.58489312,68506.0,68505.0,0.000819]
[1730613113288,1.4761786,68506.0,68505.0,0.000819]
[1730613113810,1.4631786,68506.0,68505.0,0.000819]
[1730613114030,1.4771786,68506.0,68505.0,0.000819]
[1730613114234,1.4631786,68506.0,68505.0,0.000819]
[1730613114439,1.49312728,68506.0,68505.0,0.000819]
[1730613114670,1.49312671,68506.0,68505.0,0.000819]
[1730613114901,1.3395621,68506.0,68505.0,0.000819]
[1730613116804,1.33955794,68506.0,68505.0,0.000819]
[1730613117014,1.2526327,68506.0,68505.0,0.000819]
[1730613118256,1.33960278,68506.0,68505.0,0.000819]
[1730613119113,1.30270164,68506.0,68505.0,0.000819]
[1730613119588,1.41141424,68506.0,68505.0,0.000819]
[1730613122188,1.30270164,68506.0,68505.0,0.000819]
[1730613122604,1.41141424,68506.0,68505.0,0.000819]
[1730613123301,1.41141486,68506.0,68505.0,0.000819]
[1730613123518,1.36134592,68506.0,68505.0,0.000819]
[1730613124389,1.25263332,68506.0,68505.0,0.000819]
[1730613124616,1.33139321,68506.0,68505.0,0.000819]
[1730613124833,1.33130478,68506.0,68505.0,0.000819]
[1730613125708,1.33230478,68506.0,68505.0,0.000819]
[1730613125930,1.4072111,68506.0,68505.0,0.000819]
[1730613128615,1.4052111,68506.0,68505.0,0.000819]
[1730613129504,1.40481659,68506.0,68505.0,0.000819]
[1730613132612,1.40481659,68506.0,68502.0,0.000819]
[1730613132613,0.38609435,68503.0,68502.0,0.000819]
[1730613132833,1.33557426,68503.0,68502.0,0.000819]
[1730613133736,1.34957426,68503.0,68502.0,0.000819]
[1730613133925,1.5758,68503.0,68502.0,0.000819]
[1730613134229,1.48114301,68503.0,68502.0,0.000819]
[1730613134478,1.58980126,68503.0,68502.0,0.000819]
[1730613134942,1.56805488,68503.0,68502.0,0.000819]
[1730613135164,1.5898008,68503.0,68502.0,0.000819]
[1730613137835,1.48114381,68503.0,68502.0,0.000819]
[1730613138464,1.5898008,68503.0,68502.0,0.000819]
[1730613138683,1.48114381,68503.0,68502.0,0.000819]
[1730613138906,1.48114381,68503.0,68502.0,0.00073539]
[1730613139116,1.5898008,68503.0,68502.0,0.00073539]
[1730613141560,1.44397506,68503.0,68502.0,0.00073539]
[1730613141765,1.40863794,68503.0,68502.0,0.00073539]
[1730613141978,1.44398427,68503.0,68502.0,0.00073539]
[1730613143271,1.44384744,68503.0,68502.0,0.00073539]
[1730613144400,1.33517786,68503.0,68502.0,0.00073539]
[1730613144610,1.4810036,68503.0,68502.0,0.00073539]
[1730613145466,1.44565727,68503.0,68502.0,0.00073539]
[1730613145676,1.48100386,68503.0,68502.0,0.00073539]
[1730613145890,1.44565727,68503.0,68502.0,0.00073539]
[1730613146110,1.48100386,68503.0,68502.0,0.00073539]
[1730613147842,1.48104561,68503.0,68502.0,0.00073539]
[1730613149404,1.48306097,68503.0,68502.0,0.00073539]
[1730613150040,1.48089097,68503.0,68502.0,0.00073539]
[1730613150269,1.48089097,68503.0,68497.0,0.000819]
[1730613150270,0.36630435,68498.0,68497.0,0.000819]
[1730613150474,1.40433202,68498.0,68497.0,0.000819]
[1730613150718,1.42609322,68498.0,68497.0,0.000819]
[1730613150931,1.45270097,68498.0,68497.0,0.000819]
[1730613151140,1.53146086,68498.0,68497.0,0.000819]
[1730613151371,1.45270097,68498.0,68497.0,0.000819]
[1730613152487,1.45271345,68498.0,68497.0,0.000819]
[1730613152902,1.47371345,68498.0,68497.0,0.000819]
[1730613153370,1.4383515,68498.0,68497.0,0.000819]
[1730613153591,1.32789715,68498.0,68497.0,0.000819]
[1730613153834,1.43667469,68498.0,68497.0,0.000819]
[1730613154053,1.35357469,68498.0,68497.0,0.000819]
[1730613155455,1.24479715,68498.0,68497.0,0.000819]
[1730613155665,1.32789715,68498.0,68497.0,0.000819]
[1730613155901,1.47372289,68498.0,68497.0,0.000819]
[1730613157397,1.4383515,68498.0,68497.0,0.000819]
[1730613157601,1.47372438,68498.0,68497.0,0.000819]
[1730613161279,1.47372646,68498.0,68497.0,0.000819]
[1730613161505,1.4741614,68498.0,68497.0,0.000819]
[1730613163419,1.4761614,68498.0,68497.0,0.000819]
[1730613163648,1.4741614,68498.0,68497.0,0.000819]
[1730613165187,1.43878644,68498.0,68497.0,0.000819]
[1730613165409,1.47415939,68498.0,68497.0,0.000819]
[1730613167830,1.47415937,68498.0,68497.0,0.000819]
[1730613168049,0.01305546,68495.0,68494.0,0.0090707]
[1730613168256,0.71828074,68495.0,68494.0,0.0090707]
[1730613168466,1.22858074,68495.0,68494.0,0.0090707]
[1730613169332,1.19320781,68495.0,68494.0,0.0090707]
[1730613169756,1.22857497,68495.0,68494.0,0.0090707]
[1730613169962,1.39040071,68495.0,68494.0,0.0090707]
[1730613170815,1.2408414,68495.0,68494.0,0.0090707]
[1730613171034,1.39030852,68495.0,68494.0,0.0090707]
[1730613171678,1.46906841,68495.0,68494.0,0.0090707]
[1730613172325,1.57787726,68495.0,68494.0,0.0090707]
[1730613172774,1.46906841,68495.0,68494.0,0.0090707]
[1730613173646,1.57790769,68495.0,68494.0,0.0090707]
[1730613173891,1.57792357,68495.0,68494.0,0.0090707]
[1730613175709,1.3274392,68495.0,68494.0,0.0090707]
[1730613177028,1.32745721,68495.0,68494.0,0.0098897]
[1730613179282,1.28205721,68495.0,68494.0,0.0098897]
[1730613179502,1.19498395,68495.0,68494.0,0.0098897]
[1730613180157,1.04529356,68495.0,68494.0,0.0098897]
[1730613180429,0.96153367,68495.0,68494.0,0.0098897]
[1730613180851,1.00507475,68495.0,68494.0,0.0098897]
[1730613181318,0.90007475,68495.0,68494.0,0.0098897]
[1730613181571,0.56474063,68495.0,68494.0,0.0907897]
[1730613182418,0.56473629,68495.0,68494.0,0.2856877]
[1730613183313,0.55673629,68495.0,68494.0,0.2856877]
[1730613183538,0.52135546,68495.0,68494.0,0.2856877]
[1730613183765,0.54872413,68495.0,68494.0,0.2856877]
[1730613183990,0.54972413,68495.0,68494.0,0.2856877]
[1730613184871,0.54766867,68495.0,68494.0,0.36444759]
[1730613185110,0.54766867,68495.0,68494.0,0.37155642]
[1730613185358,0.52490333,68495.0,68494.0,0.29279653]
[1730613186235,0.52590333,68495.0,68494.0,0.2856877]
[1730613186676,0.52590333,68495.0,68494.0,0.29279653]
[1730613186883,0.52490333,68495.0,68494.0,0.2856877]
[1730613187118,0.5113,68495.0,68494.0,0.29279653]
[1730613187331,0.5113,68495.0,68494.0,0.29279011]
[1730613187550,0.5113,68495.0,68494.0,0.2856877]
[1730613187775,0.5113,68495.0,68494.0,0.2866877]
[1730613187776,0.5103,68495.0,68494.0,0.2866877]
[1730613187986,0.5103,68495.0,68494.0,0.2876877]
[1730613188200,0.5103,68495.0,68494.0,0.29479011]
[1730613188413,0.5103,68495.0,68494.0,0.44258715]
[1730613188644,0.5103,68495.0,68494.0,0.44453169]
[1730613189322,0.5103,68495.0,68494.0,0.44153169]
[1730613189530,0.5103,68495.0,68494.0,0.44353169]
[1730613189739,0.5103,68495.0,68494.0,0.44253169]
[1730613189946,0.5103,68495.0,68494.0,0.44153169]
[1730613190133,0.5103,68495.0,68494.0,0.44253169]
[1730613190606,0.5103,68495.0,68494.0,0.43542928]
[1730613190841,0.5103,68495.0,68494.0,0.44253169]
[1730613191056,0.5103,68495.0,68494.0,0.43570619]
[1730613191275,0.5103,68495.0,68494.0,0.42860378]
[1730613191762,0.3822,68495.0,68494.0,0.40380378]
[1730613191986,0.3724,68495.0,68494.0,0.42628109]
[1730613192418,0.3724,68495.0,68494.0,0.47000364]
[1730613192633,0.3724,68495.0,68494.0,0.57797353]
[1730613192844,0.3724,68495.0,68494.0,0.76089729]
[1730613193054,0.001638,68497.0,68496.0,0.18414754]
[1730613193268,0.001638,68497.0,68496.0,0.73521074]
[1730613193479,0.001638,68497.0,68496.0,0.51580688]
[1730613193697,0.001638,68497.0,68496.0,0.55738063]
[1730613193916,0.001638,68497.0,68496.0,0.62506962]
[1730613194149,0.001638,68497.0,68496.0,0.55962583]
[1730613194370,0.001638,68497.0,68496.0,0.60420678]
[1730613194606,0.001638,68497.0,68496.0,0.55352342]
[1730613194825,0.001638,68497.0,68496.0,0.5605863]
[1730613196108,0.001638,68497.0,68496.0,0.5615863]
[1730613197417,0.001638,68497.0,68496.0,0.5605863]
[1730613197622,0.001638,68497.0,68496.0,0.5595863]
[1730613197836,0.001638,68497.0,68496.0,0.5605863]
[1730613198080,0.001638,68497.0,68496.0,0.5615863]
[1730613198329,0.001638,68497.0,68496.0,0.56157949]
[1730613201979,0.001638,68497.0,68496.0,0.5615777]
[1730613204166,0.001638,68497.0,68496.0,0.56159443]
[1730613204443,0.001638,68497.0,68496.0,0.55454015]
[1730613204668,0.001638,68497.0,68496.0,0.56159718]
[1730613205078,0.001638,68497.0,68496.0,0.56059718]
[1730613205496,0.001638,68497.0,68496.0,0.56159718]
[1730613205957,0.001638,68497.0,68496.0,0.56059718]
[1730613206368,0.001638,68497.0,68496.0,0.56159718]
[1730613207784,0.001638,68497.0,68496.0,0.56159652]
[1730613209471,0.001638,68497.0,68496.0,0.55453949]
[1730613209679,0.001638,68497.0,68496.0,0.56160882]
[1730613210849,0.001638,68497.0,68496.0,0.56160913]
[1730613212750,0.001638,68497.0,68496.0,0.55453949]
[1730613212943,0.001638,68497.0,68496.0,0.55253949]
[1730613213377,0.001638,68497.0,68496.0,0.43024524]
[1730613213588,0.001638,68497.0,68496.0,0.55059495]
[1730613213797,0.001638,68497.0,68496.0,0.5092411]
[1730613214023,0.001638,68497.0,68496.0,0.5082411]
[1730613214238,0.001638,68497.0,68496.0,0.5072411]
[1730613214455,0.001638,68497.0,68496.0,0.5092411]
[1730613214683,0.001638,68497.0,68496.0,0.5153184]
[1730613214890,0.001638,68497.0,68496.0,0.52239872]
[1730613215106,0.001638,68497.0,68496.0,0.51432142]
[1730613215320,0.001638,68497.0,68496.0,0.52565073]
[1730613216359,0.001638,68497.0,68496.0,0.52665073]
[1730613216777,0.001638,68497.0,68496.0,0.52765073]
[1730613216983,0.001638,68497.0,68496.0,0.52766303]
[1730613220229,0.001638,68497.0,68496.0,0.5092411]
[1730613220446,0.001638,68497.0,68496.0,0.52767763]
[1730613225410,0.001638,68497.0,68496.0,0.52962217]
[1730613225849,0.001638,68497.0,68496.0,0.53162217]
[1730613227776,0.001638,68497.0,68496.0,0.5316275]
[1730613228418,0.001638,68497.0,68496.0,0.57512653]
[1730613229456,0.001638,68497.0,68496.0,0.85888315]
[1730613229656,0.00164,68502.0,68501.0,0.41291926]
[1730613229859,0.00164,68502.0,68501.0,0.62084275]
[1730613230094,0.00164,68502.0,68501.0,0.4961623]
[1730613230300,0.00164,68502.0,68501.0,0.4984075]
[1730613230503,0.00164,68502.0,68501.0,0.56393439]
[1730613230705,0.00164,68502.0,68501.0,0.54549253]
[1730613230928,0.00164,68502.0,68501.0,0.56493482]
[1730613231163,0.00164,68502.0,68501.0,0.56084194]
[1730613231328,0.00164,68502.0,68501.0,0.50240793]
[1730613231565,0.00164,68502.0,68501.0,0.50240878]
[1730613231984,0.00164,68502.0,68501.0,0.50140878]
[1730613232188,0.00164,68502.0,68501.0,0.49940878]
[1730613232411,0.01564,68502.0,68501.0,0.56393567]
[1730613232798,0.02964,68502.0,68501.0,0.56593567]
[1730613233313,0.02964,68502.0,68501.0,0.49840878]
[1730613233526,0.02964,68502.0,68501.0,0.72535058]
[1730613234099,0.02964,68502.0,68501.0,0.41246838]
[1730613234337,0.02964,68502.0,68501.0,0.16667134]
[1730613234338,0.07674,68502.0,68501.0,0.16667134]
[1730613234504,0.15594,68502.0,68501.0,0.15532226]
[1730613235128,0.14194,68502.0,68501.0,0.15532226]
[1730613235472,0.15594,68502.0,68501.0,0.15632226]
[1730613236161,0.12794,68502.0,68501.0,0.18454226]
[1730613236381,0.14354189,68502.0,68501.0,0.15632226]
[1730613236587,0.14354189,68502.0,68501.0,0.15532226]
[1730613236925,0.14554189,68502.0,68501.0,0.15532226]
[1730613238210,0.13194,68502.0,68501.0,0.15532226]
[1730613238763,0.14554336,68502.0,68501.0,0.15532226]
[1730613239174,0.14554483,68502.0,68501.0,0.15532226]
[1730613240192,0.14554483,68502.0,68501.0,0.16667355]
[1730613240400,0.14554483,68502.0,68501.0,0.15532226]
[1730613240605,0.14554483,68502.0,68501.0,0.16667355]
[1730613243525,0.14554483,68502.0,68501.0,0.15532226]
[1730613243751,0.14554483,68502.0,68501.0,0.16667355]
[1730613243964,0.14554483,68502.0,68501.0,0.15532226]
[1730613244179,0.14554483,68502.0,68501.0,0.16667355]
[1730613244419,0.14554736,68502.0,68501.0,0.15532226]
[1730613244630,0.14554736,68502.0,68501.0,0.16667355]
[1730613244839,0.14554736,68502.0,68501.0,0.15532226]
[1730613245065,0.14554736,68502.0,68501.0,0.16667355]
[1730613245286,0.14554736,68502.0,68501.0,0.15532226]
[1730613245510,0.14554736,68502.0,68501.0,0.16667355]
[1730613245743,0.14554736,68502.0,68501.0,0.15532226]
[1730613248147,0.14555175,68502.0,68501.0,0.15532226]
[1730613248572,0.14555194,68502.0,68501.0,0.1482282]
[1730613248785,0.14555194,68502.0,68501.0,0.23431739]
[1730613251874,0.14555213,68502.0,68501.0,0.23431699]
[1730613254409,0.14555213,68502.0,68501.0,0.00933813]
[1730613254626,0.14555213,68502.0,68501.0,0.15532113]
[1730613255319,0.14555213,68502.0,68501.0,0.1482282]
[1730613255533,0.14555133,68502.0,68501.0,0.15532064]
[1730613258139,0.14555133,68502.0,68501.0,0.00933764]
[1730613258140,0.29458779,68502.0,68501.0,0.00933764]
[1730613258371,0.31636228,68502.0,68501.0,0.00933764]
[1730613258799,0.28097646,68502.0,68501.0,0.0022452]
[1730613259009,0.31636016,68502.0,68501.0,0.00933714]
[1730613259234,0.31235955,68502.0,68501.0,0.00933702]
[1730613259652,0.31235955,68502.0,68501.0,0.01033702]
[1730613259653,0.32935955,68502.0,68501.0,0.01033702]
[1730613262065,0.18337855,68502.0,68501.0,0.01033702]
[1730613262477,0.18337855,68502.0,68501.0,0.01033732]
[1730613263082,0.32935955,68502.0,68501.0,0.01033732]
[1730613266412,0.18337855,68502.0,68501.0,0.01033732]
[1730613268394,0.32935955,68502.0,68501.0,0.01033732]
[1730613268612,0.18337855,68502.0,68501.0,0.01033732]
[1730613268820,0.32935657,68502.0,68501.0,0.01033732]
[1730613270150,0.31574836,68502.0,68501.0,0.01033828]
[1730613270380,0.32935579,68502.0,68501.0,0.01033828]
[1730613273231,0.32935579,68502.0,68501.0,0.0032452]
[1730613273440,0.32935579,68502.0,68501.0,0.01033859]
[1730613274850,0.32935248,68502.0,68501.0,0.01033859]
[1730613275851,0.18337148,68502.0,68501.0,0.01033859]
[1730613276937,0.18337045,68502.0,68501.0,0.01033901]
[1730613277629,0.32935145,68502.0,68501.0,0.01033901]
[1730613277827,0.18337045,68502.0,68501.0,0.01033901]
[1730613279428,0.32935145,68502.0,68501.0,0.01033901]
[1730613280712,0.32935201,68502.0,68501.0,0.01034017]
[1730613280922,0.18337101,68502.0,68501.0,0.01034017]
[1730613281159,0.16160138,68502.0,68501.0,0.0032452]
[1730613281372,0.18337086,68502.0,68501.0,0.01034017]
[1730613283940,0.18337086,68502.0,68501.0,0.15632317]
[1730613284390,0.18337086,68502.0,68501.0,0.1492282]
[1730613284603,0.18338487,68502.0,68501.0,0.15632551]
[1730613285452,0.18339168,68502.0,68501.0,0.15632551]
[1730613288267,0.14799546,68502.0,68501.0,0.1492282]
[1730613288485,0.18341111,68502.0,68501.0,0.15632929]
[1730613289804,0.18035565,68502.0,68501.0,0.15632929]
[1730613291981,0.14494,68502.0,68501.0,0.1492282]
[1730613292182,0.18035794,68502.0,68501.0,0.15632936]
[1730613292386,0.18035794,68502.0,68501.0,0.16343017]
[1730613292592,0.18035794,68502.0,68501.0,0.15632901]
[1730613293461,0.07936228,68502.0,68501.0,0.31348813]
[1730613293673,0.03226228,68502.0,68501.0,0.31548813]
[1730613293967,0.03226228,68502.0,68501.0,0.31348813]
[1730613294371,0.03226228,68502.0,68501.0,0.35726236]
[1730613295631,0.03226228,68502.0,68501.0,0.31348813]
[1730613295866,0.01864,68502.0,68501.0,0.35725268]
[1730613298242,0.01864,68502.0,68501.0,0.34589777]
[1730613298466,0.01864,68502.0,68501.0,0.35725268]
[1730613298825,0.01864,68502.0,68501.0,0.34589777]
[1730613299444,0.01864,68502.0,68501.0,0.34589372]
[1730613299675,0.01864,68502.0,68501.0,0.30211752]
[1730613301946,0.01064,68502.0,68501.0,0.30111752]
[1730613302156,0.01064,68502.0,68501.0,0.30211692]
[1730613302157,0.00164,68502.0,68501.0,0.30211692]
[1730613302375,0.00164,68502.0,68501.0,0.30311692]
[1730613303015,0.12664,68502.0,68501.0,0.30311692]
[1730613303637,0.12664,68502.0,68501.0,0.30111692]
[1730613303872,0.14024293,68502.0,68501.0,0.15531988]
[1730613304968,0.14024293,68502.0,68501.0,0.15631988]
[1730613305620,0.14024293,68502.0,68501.0,0.15531988]
[1730613305837,0.14124293,68502.0,68501.0,0.1482282]
[1730613306067,0.14124293,68502.0,68501.0,0.15531921]
[1730613306282,0.14224293,68502.0,68501.0,0.15531921]
[1730613308801,0.14529839,68502.0,68501.0,0.00933621]
[1730613309011,0.29127939,68502.0,68501.0,0.00933621]
[1730613309463,0.29027939,68502.0,68501.0,0.00933621]
[1730613309667,0.14329839,68502.0,68501.0,0.00933621]
[1730613309870,0.29127939,68502.0,68501.0,0.00933621]
[1730613310084,0.29027939,68502.0,68501.0,0.00933621]
[1730613310302,0.29627939,68502.0,68501.0,0.00933621]
[1730613311144,0.29527939,68502.0,68501.0,0.00933621]
[1730613311570,0.30027939,68502.0,68501.0,0.00933621]
[1730613312239,0.32205685,68502.0,68501.0,0.0022452]
[1730613312697,0.32205685,68502.0,68501.0,0.00933621]
[1730613312912,0.32205685,68502.0,68501.0,0.0022452]
[1730613313418,0.28667646,68502.0,68501.0,0.0022452]
[1730613313642,0.32206599,68502.0,68501.0,0.0022452]
[1730613314558,0.32206522,68502.0,68501.0,0.0022452]
[1730613316721,0.31606522,68502.0,68501.0,0.0022452]
[1730613316980,0.28667646,68502.0,68501.0,0.0022452]
[1730613317197,0.31106404,68502.0,68501.0,0.0022452]
[1730613317614,0.32506404,68502.0,68501.0,0.0022452]
[1730613318266,0.32006404,68502.0,68501.0,0.0022452]
[1730613318677,0.32706404,68502.0,68501.0,0.0022452]
[1730613327444,0.29167646,68502.0,68501.0,0.0022452]
[1730613327656,0.32706045,68502.0,68501.0,0.0022452]
[1730613332053,0.32706662,68502.0,68501.0,0.0022452]
[1730613338875,0.32708537,68502.0,68501.0,0.0022452]
[1730613340074,0.31346818,68502.0,68501.0,0.0022452]
[1730613340227,0.327088,68502.0,68501.0,0.0022452]
[1730613340422,0.327088,68502.0,68501.0,0.0093392]
[1730613341126,0.327088,68502.0,68501.0,0.00933989]
[1730613343599,0.29167646,68502.0,68501.0,0.0022452]
[1730613343797,0.32709683,68502.0,68501.0,0.0093418]
[1730613348090,0.18111583,68502.0,68501.0,0.0093418]
[1730613349785,0.32709683,68502.0,68501.0,0.0093418]
[1730613349995,0.18111583,68502.0,68501.0,0.0093418]
[1730613350415,0.18111583,68502.0,68501.0,0.0022452]
[1730613350648,0.18111583,68502.0,68501.0,0.00934233]
[1730613353659,0.18111583,68502.0,68501.0,0.00934251]
[1730613354227,0.18111139,68502.0,68501.0,0.00934251]
[1730613355338,0.32709239,68502.0,68501.0,0.00934251]
[1730613357970,0.32709247,68502.0,68501.0,0.00934251]
[1730613360756,0.29167646,68502.0,68501.0,0.0022452]
[1730613360962,0.32709442,68502.0,68501.0,0.00934257]
[1730613364013,0.32709783,68502.0,68501.0,0.00934258]
[1730613367512,0.32709619,68502.0,68501.0,0.0022452]
[1730613367742,0.32709619,68502.0,68501.0,0.0093426]
[1730613367918,0.32709634,68502.0,68501.0,0.0093426]
[1730613368136,0.32709644,68502.0,68501.0,0.0093426]
[1730613369146,0.29167646,68502.0,68501.0,0.0093426]
[1730613369361,0.32709167,68502.0,68501.0,0.0093426]
[1730613370125,0.18111067,68502.0,68501.0,0.0093426]
[1730613370336,0.32709167,68502.0,68501.0,0.0093426]
[1730613372243,0.32709167,68502.0,68501.0,0.0022452]